fUSD/lending_fUSD_20250811
["ID","MTS","AMOUNT","RATE_DAILY","PERIOD"]
[378564943,1754913121026,-979.39,0.00017994,2]
[378564944,1754913121036,-1333.91,0.00017994,2]
[378564945,1754913121046,-905.1,0.00017994,2]
[378564946,1754913121056,-400.0,0.00017994,2]
[378564947,1754913121066,-894.54,0.00017994,2]
[378564948,1754913121076,-676.94,0.00017994,2]
[378564949,1754913121086,-400.0,0.00017994,2]
[378564950,1754913121096,-400.0,0.00017994,2]
[378564951,1754913121106,-400.0,0.00017994,2]
[378564952,1754913121116,-542.48,0.00017994,2]
[378564953,1754913121126,-508.79,0.00017994,2]
[378564954,1754913121135,-999.87,0.00017994,2]
[378564955,1754913121148,-3049.11,0.00017994,2]
[378564956,1754913121159,-1358.48,0.00017994,2]
[378564957,1754913121170,-400.0,0.00017994,2]
[378564958,1754913121180,-400.0,0.00017994,2]
[378564959,1754913121190,-588.01,0.00017994,2]
[378564960,1754913121201,-400.0,0.00017994,2]
[378564961,1754913121211,-917.7,0.00017994,2]
[378564962,1754913121222,-575.14,0.00017994,2]
[378564963,1754913121233,-534.7,0.00017994,2]
[378564964,1754913121244,-400.0,0.00017994,2]
[378564965,1754913121256,-1119.85,0.00017994,2]
[378564966,1754913121267,-400.0,0.00017994,2]
[378564967,1754913121277,-400.0,0.00017994,2]
[378564968,1754913121288,-1484.62,0.00017994,2]
[378564969,1754913121299,-1423.31,0.00017994,2]
[378564970,1754913121309,-1105.92,0.00017994,2]
[378564971,1754913121319,-778.81,0.00017994,2]
[378564972,1754913121331,-400.0,0.00017994,2]
[378564973,1754913121341,-400.0,0.00017994,2]
[378564974,1754913121351,-513.21,0.00017994,2]
[378564975,1754913121361,-1184.91,0.00017994,2]
[378564976,1754913121372,-446.8,0.00017994,2]
[378564977,1754913121382,-400.0,0.00017994,2]
[378564978,1754913121396,-2031.02,0.00017994,2]
[378564979,1754913121407,-400.0,0.00017994,2]
[378564980,1754913121418,-1438.07,0.00017994,2]
[378564981,1754913121429,-569.54,0.00017994,2]
[378564982,1754913121439,-1835.91,0.00017994,2]
[378564983,1754913121449,-490.51322006,0.00017994,2]
[378564984,1754913121460,-1664.57,0.00017994,2]
[378564985,1754913121470,-474.7,0.00017994,2]
[378564986,1754913121480,-1140.5,0.00017994,2]
[378564987,1754913121491,-420.23,0.00017994,2]
[378564988,1754913121500,-403.53216324,0.00017994,2]
[378564989,1754913121511,-558.06,0.00017994,2]
[378564990,1754913121520,-400.0,0.00017994,2]
[378564991,1754913121530,-912.23,0.00017994,2]
[378564992,1754913121540,-535.61,0.00017994,2]
[378564993,1754913121549,-3776.9,0.00017994,2]
[378564994,1754913121560,-1600.74,0.00017994,2]
[378564995,1754913121570,-400.0,0.00017994,2]
[378564996,1754913121580,-400.0,0.00017994,2]
[378564997,1754913121589,-1187.21,0.00017994,2]
[378564998,1754913121600,-400.0,0.00017994,2]
[378564999,1754913121610,-1174.64,0.00017994,2]
[378565000,1754913121620,-1143.3,0.00017994,2]
[378565001,1754913121631,-400.0,0.00017994,2]
[378565002,1754913121645,-3766.4,0.00017994,2]
[378565003,1754913121656,-405.71,0.00017994,2]
[378565004,1754913121665,-1750.0,0.00017994,2]
[378565005,1754913121675,-400.0,0.00017994,2]
[378565006,1754913121685,-400.0,0.00017994,2]
[378565007,1754913121695,-400.0,0.00017994,2]
[378565008,1754913121706,-1439.21,0.00017994,2]
[378565009,1754913121716,-999.19,0.00017994,2]
[378565010,1754913121727,-400.0,0.00017994,2]
[378565011,1754913121737,-500.0,0.00017994,2]
[378565012,1754913121747,-400.0,0.00017994,2]
[378565013,1754913121757,-400.0,0.00017994,2]
[378565014,1754913121766,-400.0,0.00017994,2]
[378565015,1754913121776,-825.23,0.00017994,2]
[378565016,1754913121786,-400.0,0.00017994,2]
[378565017,1754913121796,-2291.54,0.00017994,2]
[378565018,1754913121806,-400.0,0.00017994,2]
[378565019,1754913121815,-893.83,0.00017994,2]
[378565020,1754913121825,-579.98,0.00017994,2]
[378565021,1754913121834,-639.13,0.00017994,2]
[378565022,1754913121844,-1169.96,0.00017994,2]
[378565023,1754913121854,-629.51,0.00017994,2]
[378565024,1754913121864,-1947.0,0.00017994,2]
[378565025,1754913121873,-1432.85,0.00017994,2]
[378565026,1754913121883,-437.63,0.00017994,2]
[378565027,1754913121897,-1369.48,0.00017994,2]
[378565028,1754913121906,-400.0,0.00017994,2]
[378565029,1754913121916,-1311.13,0.00017994,2]
[378565030,1754913121925,-400.0,0.00017994,2]
[378565031,1754913121935,-630.75,0.00017994,2]
[378565032,1754913121945,-3083.43,0.00017994,2]
[378565033,1754913121956,-493.25,0.00017994,2]
[378565034,1754913121965,-1219.17,0.00017994,2]
[378565035,1754913121975,-499.66,0.00017994,2]
[378565036,1754913121984,-521.46,0.00017994,2]
[378565037,1754913121994,-875.72,0.00017994,2]
[378565038,1754913122003,-2612.12,0.00017994,2]
[378565039,1754913122013,-542.37,0.00017994,2]
[378565040,1754913122023,-866.08,0.00017994,2]
[378565041,1754913122033,-717.7,0.00017994,2]
[378565042,1754913122043,-4501.74,0.00017994,2]
[378565043,1754913122054,-433.74,0.00017994,2]
[378565044,1754913122063,-400.0,0.00017994,2]
[378565045,1754913122073,-1112.57,0.00017994,2]
[378565046,1754913122084,-400.0,0.00017994,2]
[378565047,1754913122093,-400.0,0.00017994,2]
[378565048,1754913122104,-668.41,0.00017994,2]
[378565049,1754913122114,-464.98,0.00017994,2]
[378565050,1754913122125,-6625.36,0.00017994,2]
[378565051,1754913122134,-400.0,0.00017994,2]
[378565052,1754913122146,-3376.95,0.00017994,2]
[378565053,1754913122157,-1234.57,0.00017994,2]
[378565054,1754913122167,-464.79,0.00017994,2]
[378565055,1754913122177,-672.57,0.00017994,2]
[378565056,1754913122187,-400.0,0.00017994,2]
[378565057,1754913122197,-1313.89,0.00017994,2]
[378565058,1754913122206,-4406.48,0.00017994,2]
[378565059,1754913122216,-842.59,0.00017994,2]
[378565060,1754913122226,-2757.93,0.00017994,2]
[378565061,1754913122235,-426.20186255,0.00017994,2]
[378565062,1754913122246,-503.99,0.00017994,2]
[378565063,1754913122261,-400.0,0.00017994,2]
[378565064,1754913122271,-400.0,0.00017994,2]
[378565065,1754913122282,-151.0,0.00017994,2]
[378565066,1754913122294,-600.0,0.00017994,2]
[378565067,1754913122312,-478.37,0.00017995,2]
[378565068,1754913122324,-400.0,0.00017995,2]
[378565069,1754913122334,-400.0,0.00017995,2]
[378565070,1754913122345,-1026.77,0.00017995,2]
[378565071,1754913122356,-527.98,0.00017995,2]
[378565072,1754913122366,-400.0,0.00017995,2]
[378565073,1754913122375,-705.32,0.00017995,2]
[378565074,1754913122385,-400.0,0.00017995,2]
[378565075,1754913122396,-1171.25,0.00017995,2]
[378565076,1754913122405,-400.0,0.00017995,2]
[378565077,1754913122415,-847.35,0.00017995,2]
[378565078,1754913122425,-1000.0,0.00017995,2]
[378565079,1754913122435,-581.39,0.00017995,2]
[378565080,1754913122445,-400.0,0.00017995,2]
[378565081,1754913122454,-400.0,0.00017995,2]
[378565082,1754913122464,-400.0,0.00017995,2]
[378565083,1754913122474,-1319.92,0.00017995,2]
[378565084,1754913122483,-400.0,0.00017995,2]
[378565085,1754913122493,-400.0,0.00017995,2]
[378565086,1754913122503,-542.81,0.00017995,2]
[378565087,1754913122512,-400.0,0.00017995,2]
[378565088,1754913122522,-400.0,0.00017995,2]
[378565089,1754913122532,-424.8,0.00017995,2]
[378565090,1754913122541,-400.0,0.00017995,2]
[378565091,1754913122551,-678.46,0.00017995,2]
[378565092,1754913122561,-400.0,0.00017995,2]
[378565093,1754913122570,-522.70959398,0.00017995,2]
[378565094,1754913122580,-400.0,0.00017995,2]
[378565095,1754913122589,-400.0,0.00017995,2]
[378565096,1754913122599,-400.0,0.00017995,2]
[378565097,1754913122609,-400.0,0.00017995,2]
[378565098,1754913122619,-866.33,0.00017995,2]
[378565099,1754913122629,-400.0,0.00017995,2]
[378565100,1754913122640,-404.54,0.00017995,2]
[378565101,1754913122650,-400.0,0.00017995,2]
[378565102,1754913122660,-400.0,0.00017995,2]
[378565103,1754913122669,-1557.21,0.00017995,2]
[378565104,1754913122679,-746.59,0.00017995,2]
[378565105,1754913122690,-972.72,0.00017995,2]
[378565106,1754913122699,-938.79,0.00017995,2]
[378565107,1754913122709,-681.35,0.00017995,2]
[378565108,1754913122719,-400.0,0.00017995,2]
[378565109,1754913122729,-400.0,0.00017995,2]
[378565110,1754913122738,-400.0,0.00017995,2]
[378565111,1754913122748,-1311.69,0.00017995,2]
[378565112,1754913122759,-505.11,0.00017995,2]
[378565113,1754913122769,-400.0,0.00017995,2]
[378565114,1754913122780,-1492.93,0.00017995,2]
[378565115,1754913122790,-400.0,0.00017995,2]
[378565116,1754913122800,-1003.89,0.00017995,2]
[378565117,1754913122810,-524.55893848,0.00017995,2]
[378565118,1754913122820,-730.49,0.00017995,2]
[378565119,1754913122830,-1885.29,0.00017995,2]
[378565120,1754913122842,-400.0,0.00017995,2]
[378565121,1754913122852,-400.0,0.00017995,2]
[378565122,1754913122862,-2097.45,0.00017995,2]
[378565123,1754913123138,-417.63,0.00017995,2]
[378565124,1754913123150,-2920.65,0.00017995,2]
[378565125,1754913123161,-805.82,0.00017995,2]
[378565126,1754913123173,-400.0,0.00017995,2]
[378565127,1754913123184,-788.53,0.00017995,2]
[378565128,1754913123196,-1491.0,0.00017995,2]
[378565129,1754913123207,-578.09,0.00017995,2]
[378565130,1754913123218,-1580.72,0.00017995,2]
[378565131,1754913123229,-1959.0,0.00017995,2]
[378565132,1754913123240,-400.0,0.00017995,2]
[378565133,1754913123252,-618.06,0.00017995,2]
[378565134,1754913123264,-400.0,0.00017995,2]
[378565135,1754913123275,-1137.38,0.00017995,2]
[378565136,1754913123286,-5923.04,0.00017995,2]
[378565137,1754913123297,-1732.92,0.00017995,2]
[378565138,1754913123307,-887.67,0.00017995,2]
[378565139,1754913123318,-400.0,0.00017995,2]
[378565140,1754913123329,-1061.76,0.00017995,2]
[378565141,1754913123341,-835.58,0.00017995,2]
[378565142,1754913123351,-1830.2,0.00017995,2]
[378565143,1754913123362,-953.47,0.00017995,2]
[378565144,1754913123372,-400.0,0.00017995,2]
[378565145,1754913123383,-400.0,0.00017995,2]
[378565146,1754913123394,-7856.95,0.00017995,2]
[378565147,1754913123405,-1326.05,0.00017995,2]
[378565148,1754913123415,-1090.22,0.00017995,2]
[378565149,1754913123426,-867.25,0.00017995,2]
[378565150,1754913123437,-400.0,0.00017995,2]
[378565151,1754913123447,-921.81,0.00017995,2]
[378565152,1754913123458,-400.0,0.00017995,2]
[378565153,1754913123468,-862.26,0.00017995,2]
[378565154,1754913123478,-1071.67,0.00017995,2]
[378565155,1754913123488,-1367.79,0.00017995,2]
[378565156,1754913123499,-400.0,0.00017995,2]
[378565157,1754913123509,-762.59,0.00017995,2]
[378565158,1754913123518,-834.48,0.00017995,2]
[378565159,1754913123527,-400.0,0.00017995,2]
[378565160,1754913123537,-1676.78,0.00017995,2]
[378565161,1754913123547,-494.42,0.00017995,2]
[378565162,1754913123557,-571.53,0.00017995,2]
[378565163,1754913123568,-400.0,0.00017995,2]
[378565164,1754913123578,-1331.18,0.00017995,2]
[378565165,1754913123589,-404.79,0.00017995,2]
[378565166,1754913123600,-3224.09,0.00017995,2]
[378565167,1754913123610,-569.83,0.00017995,2]
[378565168,1754913123620,-2108.73,0.00017995,2]
[378565169,1754913123630,-2950.39,0.00017995,2]
[378565170,1754913123641,-400.0,0.00017995,2]
[378565171,1754913123652,-1496.63,0.00017995,2]
[378565172,1754913123663,-1631.44,0.00017995,2]
[378565173,1754913123674,-400.0,0.00017995,2]
[378565174,1754913123686,-400.0,0.00017995,2]
[378565175,1754913123696,-1796.59,0.00017995,2]
[378565176,1754913123706,-400.0,0.00017995,2]
[378565177,1754913123717,-1954.18,0.00017995,2]
[378565178,1754913123728,-7055.23,0.00017995,2]
[378565179,1754913123740,-1953.7,0.00017995,2]
[378565180,1754913123751,-1959.6,0.00017995,2]
[378565181,1754913123763,-873.2,0.00017995,2]
[378565182,1754913123775,-1387.49,0.00017995,2]
[378565183,1754913123789,-2235.63,0.00017995,2]
[378565184,1754913123801,-2605.86,0.00017995,2]
[378565185,1754913123811,-400.0,0.00017995,2]
[378565186,1754913123822,-400.0,0.00017995,2]
[378565187,1754913123833,-2389.88,0.00017995,2]
[378565188,1754913123844,-872.7,0.00017995,2]
[378565189,1754913123855,-1506.75,0.00017995,2]
[378565190,1754913123867,-1438.79,0.00017995,2]
[378565191,1754913123878,-1393.05,0.00017995,2]
[378565192,1754913123890,-400.0,0.00017995,2]
[378565193,1754913123901,-1049.0,0.00017995,2]
[378565194,1754913123915,-2289.57,0.00017995,2]
[378565195,1754913123926,-2125.89,0.00017995,2]
[378565196,1754913123937,-501.78,0.00017995,2]
[378565197,1754913123948,-1348.98,0.00017995,2]
[378565198,1754913123958,-1106.35,0.00017995,2]
[378565199,1754913123969,-1712.29,0.00017995,2]
[378565200,1754913123980,-649.39,0.00017995,2]
[378565201,1754913123991,-744.08,0.00017995,2]
[378565202,1754913124002,-2029.64,0.00017995,2]
[378565203,1754913124012,-1447.39,0.00017995,2]
[378565204,1754913124022,-1696.76,0.00017995,2]
[378565205,1754913124032,-3975.5,0.00017995,2]
[378565206,1754913124043,-400.0,0.00017995,2]
[378565207,1754913124054,-734.33,0.00017995,2]
[378565208,1754913124065,-530.76,0.00017995,2]
[378565209,1754913124075,-439.15,0.00017995,2]
[378565210,1754913124086,-1536.74,0.00017995,2]
[378565211,1754913124097,-778.12,0.00017995,2]
[378565212,1754913124109,-1845.62,0.00017995,2]
[378565213,1754913124120,-574.84,0.00017995,2]
[378565214,1754913124131,-400.0,0.00017995,2]
[378565215,1754913124145,-1648.11,0.00017995,2]
[378565216,1754913124155,-1137.58,0.00017995,2]
[378565217,1754913124167,-1689.44,0.00017995,2]
[378565218,1754913124178,-3162.45,0.00017995,2]
[378565219,1754913124189,-1000.45,0.00017995,2]
[378565220,1754913124200,-1628.59,0.00017995,2]
[378565221,1754913124211,-400.0,0.00017995,2]
[378565222,1754913124222,-916.42,0.00017995,2]
[378565223,1754913124233,-951.52,0.00017995,2]
[378565224,1754913124244,-1036.79,0.00017995,2]
[378565225,1754913124258,-4094.74,0.00017995,2]
[378565226,1754913124273,-445.03,0.00017995,2]
[378565227,1754913124284,-561.9,0.00017995,2]
[378565228,1754913124294,-1757.59,0.00017995,2]
[378565229,1754913124304,-4776.03,0.00017995,2]
[378565230,1754913124315,-3424.67,0.00017995,2]
[378565231,1754913124325,-441.43,0.00017995,2]
[378565232,1754913124336,-1865.46,0.00017995,2]
[378565233,1754913124347,-4516.83,0.00017995,2]
[378565234,1754913124359,-851.6,0.00017995,2]
[378565235,1754913124369,-3740.45,0.00017995,2]
[378565236,1754913124380,-400.0,0.00017995,2]
[378565237,1754913124391,-4648.91,0.00017995,2]
[378565238,1754913124401,-3770.26,0.00017995,2]
[378565239,1754913124411,-1381.04,0.00017995,2]
[378565240,1754913124421,-400.0,0.00017995,2]
[378565241,1754913124432,-1807.77,0.00017995,2]
[378565242,1754913124441,-462.67545204,0.00017995,2]
[378565243,1754913124451,-1945.82,0.00017995,2]
[378565244,1754913124461,-400.0,0.00017995,2]
[378565245,1754913124471,-1876.26,0.00017995,2]
[378565246,1754913124480,-2063.2,0.00017995,2]
[378565247,1754913124490,-400.0,0.00017995,2]
[378565248,1754913124500,-1978.2,0.00017995,2]
[378565249,1754913124510,-521.24,0.00017995,2]
[378565250,1754913124520,-463.37,0.00017995,2]
[378565251,1754913124530,-2356.45,0.00017995,2]
[378565252,1754913124540,-2155.4,0.00017995,2]
[378565253,1754913124551,-492.39,0.00017995,2]
[378565254,1754913124561,-2004.67,0.00017995,2]
[378565255,1754913124571,-1158.32,0.00017995,2]
[378565256,1754913124580,-2736.07,0.00017995,2]
[378565257,1754913124590,-1467.0,0.00017995,2]
[378565258,1754913124604,-2513.22,0.00017995,2]
[378565259,1754913124615,-734.51,0.00017995,2]
[378565260,1754913124625,-565.83,0.00017995,2]
[378565261,1754913124635,-819.78,0.00017995,2]
[378565262,1754913124649,-1082.13,0.00017995,2]
[378565263,1754913124659,-1712.61,0.00017995,2]
[378565264,1754913124669,-1721.6,0.00017995,2]
[378565265,1754913124679,-1066.33,0.00017995,2]
[378565266,1754913124689,-514.05,0.00017995,2]
[378565267,1754913124698,-2649.89,0.00017995,2]
[378565268,1754913124708,-400.0,0.00017995,2]
[378565269,1754913124718,-540.88,0.00017995,2]
[378565270,1754913124728,-589.15,0.00017995,2]
[378565271,1754913124737,-528.89,0.00017995,2]
[378565272,1754913124747,-400.0,0.00017995,2]
[378565273,1754913124757,-507.53,0.00017995,2]
[378565274,1754913124767,-553.54,0.00017995,2]
[378565275,1754913124777,-7631.99,0.00017995,2]
[378565276,1754913124787,-838.96,0.00017995,2]
[378565277,1754913124797,-400.0,0.00017995,2]
[378565278,1754913124807,-400.0,0.00017995,2]
[378565279,1754913124817,-1649.72,0.00017995,2]
[378565280,1754913124827,-400.0,0.00017995,2]
[378565281,1754913124837,-1026.97,0.00017995,2]
[378565282,1754913124847,-983.44,0.00017995,2]
[378565284,1754913124858,-435.35,0.00017995,2]
[378565285,1754913124868,-2058.27,0.00017995,2]
[378565286,1754913124878,-400.0,0.00017995,2]
[378565287,1754913124888,-400.0,0.00017995,2]
[378565288,1754913124901,-2584.26,0.00017995,2]
[378565289,1754913124912,-1261.13,0.00017995,2]
[378565290,1754913124921,-3887.95,0.00017995,2]
[378565291,1754913124931,-400.0,0.00017995,2]
[378565292,1754913124941,-2959.65,0.00017995,2]
[378565293,1754913124950,-824.91,0.00017995,2]
[378565294,1754913124960,-400.0,0.00017995,2]
[378565295,1754913124969,-1832.99,0.00017995,2]
[378565296,1754913124979,-1382.83,0.00017995,2]
[378565297,1754913124988,-204.44,0.00017995,2]
[378565298,1754913124998,-575.31,0.00017996,2]
[378565299,1754913125008,-11775.9,0.00017996,2]
[378565300,1754913125018,-400.0,0.00017996,2]
[378565301,1754913125028,-400.0,0.00017996,2]
[378565302,1754913125037,-400.0,0.00017996,2]
[378565303,1754913125047,-761.69,0.00017996,2]
[378565304,1754913125057,-1358.43,0.00017996,2]
[378565305,1754913125067,-400.0,0.00017996,2]
[378565306,1754913125076,-400.0,0.00017996,2]
[378565307,1754913125086,-400.0,0.00017996,2]
[378565308,1754913125095,-400.0,0.00017996,2]
[378565309,1754913125105,-1946.54,0.00017996,2]
[378565310,1754913125115,-2429.72,0.00017996,2]
[378565311,1754913125125,-453.96,0.00017996,2]
[378565312,1754913125135,-400.0,0.00017996,2]
[378565313,1754913125147,-1185.2,0.00017996,2]
[378565314,1754913125157,-609.39,0.00017996,2]
[378565315,1754913125167,-778.26,0.00017996,2]
[378565316,1754913125177,-1224.12,0.00017996,2]
[378565317,1754913125188,-2904.7,0.00017996,2]
[378565318,1754913125198,-717.2,0.00017996,2]
[378565319,1754913125208,-6259.19,0.00017996,2]
[378565320,1754913125218,-1777.62,0.00017996,2]
[378565321,1754913125227,-866.66,0.00017996,2]
[378565322,1754913125237,-1553.13,0.00017996,2]
[378565323,1754913125248,-400.0,0.00017996,2]
[378565324,1754913125261,-490.02,0.00017996,2]
[378565325,1754913125270,-400.0,0.00017996,2]
[378565326,1754913125280,-729.89,0.00017996,2]
[378565327,1754913125290,-933.13,0.00017996,2]
[378565328,1754913125300,-400.0,0.00017996,2]
[378565329,1754913125310,-2159.12,0.00017996,2]
[378565330,1754913125319,-3049.08,0.00017996,2]
[378565331,1754913125329,-400.0,0.00017996,2]
[378565332,1754913125339,-1644.46,0.00017996,2]
[378565333,1754913125348,-2839.76,0.00017996,2]
[378565334,1754913125357,-400.0,0.00017996,2]
[378565335,1754913125366,-1841.28,0.00017996,2]
[378565336,1754913125376,-400.0,0.00017996,2]
[378565337,1754913125386,-667.45,0.00017996,2]
[378565338,1754913125397,-2730.28,0.00017996,2]
[378565339,1754913125407,-1203.04,0.00017996,2]
[378565340,1754913125416,-4574.56,0.00017996,2]
[378565341,1754913125426,-1161.97,0.00017996,2]
[378565342,1754913125435,-400.0,0.00017996,2]
[378565343,1754913125445,-2769.67,0.00017996,2]
[378565344,1754913125455,-2073.14,0.00017996,2]
[378565345,1754913125464,-897.46,0.00017996,2]
[378565346,1754913125473,-1608.19,0.00017996,2]
[378565347,1754913125483,-1068.52,0.00017996,2]
[378565348,1754913125494,-400.0,0.00017996,2]
[378565349,1754913125504,-2151.59,0.00017996,2]
[378565350,1754913125514,-1463.39,0.00017996,2]
[378565351,1754913125523,-1630.34,0.00017996,2]
[378565352,1754913125533,-4398.89,0.00017996,2]
[378565353,1754913125543,-2765.08,0.00017996,2]
[378565354,1754913125553,-2201.17,0.00017996,2]
[378565355,1754913125562,-1343.77,0.00017996,2]
[378565356,1754913125572,-886.91,0.00017996,2]
[378565357,1754913125581,-3353.66,0.00017996,2]
[378565358,1754913125591,-2001.78,0.00017996,2]
[378565359,1754913125601,-920.03,0.00017996,2]
[378565360,1754913125611,-2524.9,0.00017996,2]
[378565361,1754913125621,-2782.61,0.00017996,2]
[378565362,1754913125767,-1737.2,0.00017996,2]
[378565363,1754913125777,-400.0,0.00017996,2]
[378565364,1754913125787,-824.02,0.00017996,2]
[378565365,1754913125796,-792.57,0.00017996,2]
[378565366,1754913125806,-1651.26,0.00017996,2]
[378565367,1754913125815,-5566.48,0.00017996,2]
[378565368,1754913125824,-1912.08,0.00017996,2]
[378565369,1754913125833,-859.38,0.00017996,2]
[378565370,1754913125843,-2915.81,0.00017996,2]
[378565371,1754913125851,-2989.76,0.00017996,2]
[378565372,1754913125861,-1246.63,0.00017996,2]
[378565373,1754913125870,-2770.87,0.00017996,2]
[378565374,1754913125878,-1848.47,0.00017996,2]
[378565375,1754913125888,-2797.11,0.00017996,2]
[378565376,1754913125899,-2310.09,0.00017996,2]
[378565377,1754913125908,-1434.78,0.00017996,2]
[378565378,1754913125917,-964.74,0.00017996,2]
[378565379,1754913125926,-1229.39,0.00017996,2]
[378565380,1754913125936,-1197.11,0.00017996,2]
[378565381,1754913125945,-3106.15,0.00017996,2]
[378565382,1754913125954,-715.89,0.00017996,2]
[378565383,1754913125964,-4413.0,0.00017996,2]
[378565384,1754913125973,-1019.63,0.00017996,2]
[378565385,1754913125983,-1289.6,0.00017996,2]
[378565386,1754913125992,-1053.69,0.00017996,2]
[378565387,1754913126001,-1021.38,0.00017996,2]
[378565388,1754913126011,-2236.64,0.00017996,2]
[378565389,1754913126020,-1225.59,0.00017996,2]
[378565390,1754913126029,-990.51,0.00017996,2]
[378565391,1754913126039,-2224.71,0.00017996,2]
[378565392,1754913126048,-647.02,0.00017996,2]
[378565393,1754913126058,-1527.51,0.00017996,2]
[378565394,1754913126067,-1206.91,0.00017996,2]
[378565395,1754913126077,-3885.65,0.00017996,2]
[378565396,1754913126086,-1000.0,0.00017996,2]
[378565397,1754913126096,-1337.96,0.00017996,2]
[378565398,1754913126107,-3939.07,0.00017996,2]
[378565399,1754913126117,-444.27,0.00017996,2]
[378565400,1754913126128,-400.0,0.00017996,2]
[378565401,1754913126138,-584.75,0.00017996,2]
[378565402,1754913126151,-851.1,0.00017996,2]
[378565403,1754913126162,-5655.06,0.00017996,2]
[378565404,1754913126172,-3247.91,0.00017996,2]
[378565405,1754913126182,-3139.81875585,0.00017996,2]
[378565406,1754913126191,-151.0,0.00017997,2]
[378565407,1754913126202,-2498.829249,0.00017997,2]
[378565408,1754913126212,-2498.829249,0.00017997,2]
[378565409,1754913126221,-2402.588643,0.00017997,2]
[378565410,1754913126231,-2402.588643,0.00017997,2]
[378565411,1754913126240,-419.089911,0.00017997,2]
[378565412,1754913126250,-419.089911,0.00017997,2]
[378565413,1754913126263,-151.0,0.00017997,2]
[378565414,1754913126272,-473.14,0.00017997,2]
[378565415,1754913126282,-400.0,0.00017997,2]
[378565416,1754913126294,-785.69,0.00017997,2]
[378565417,1754913126304,-400.0,0.00017997,2]
[378565418,1754913126313,-610.16,0.00017997,2]
[378565419,1754913126322,-500.46,0.00017997,2]
[378565420,1754913126333,-568.15,0.00017997,2]
[378565421,1754913126342,-400.0,0.00017997,2]
[378565422,1754913126352,-1197.3,0.00017997,2]
[378565423,1754913126361,-1110.34,0.00017997,2]
[378565424,1754913126371,-400.0,0.00017997,2]
[378565425,1754913126380,-784.14,0.00017997,2]
[378565426,1754913126392,-400.0,0.00017997,2]
[378565427,1754913126401,-531.36,0.00017997,2]
[378565428,1754913126410,-881.7,0.00017997,2]
[378565429,1754913126420,-400.0,0.00017997,2]
[378565430,1754913126430,-1292.81,0.00017997,2]
[378565431,1754913126439,-818.44,0.00017997,2]
[378565432,1754913126448,-1011.15,0.00017997,2]
[378565433,1754913126458,-1031.23,0.00017997,2]
[378565434,1754913126467,-400.0,0.00017997,2]
[378565435,1754913126477,-400.0,0.00017997,2]
[378565436,1754913126490,-400.0,0.00017997,2]
[378565437,1754913126499,-210.89001589,0.00017997,2]
[378565438,1754913126508,-671.36,0.00017997,2]
[378565439,1754913126517,-490.88,0.00017997,2]
[378565440,1754913126527,-1064.9,0.00017997,2]
[378565441,1754913126537,-905.17,0.00017997,2]
[378565442,1754913126546,-892.04,0.00017997,2]
[378565443,1754913126555,-400.0,0.00017997,2]